lending/lending_fUSD_20240219
["ID","MTS","AMOUNT","RATE_DAILY","PERIOD"]
[314450856,1708361500889,-528.28465209,0.00047123,18]
[314450857,1708361500899,-2454.44,0.00047123,18]
[314450858,1708361500909,-500.0,0.00047123,18]
[314450859,1708361500918,-500.0,0.00047123,18]
[314450860,1708361500928,-500.0,0.00047123,18]
[314450861,1708361500938,-500.0,0.00047123,18]
[314450862,1708361500949,-500.0,0.00047123,18]
[314450863,1708361500959,-536.10413173,0.00047123,18]
[314450864,1708361500971,-500.0,0.00047123,18]
[314450865,1708361500981,-500.0,0.00047123,18]
[314450866,1708361500991,-500.0,0.00047123,18]
[314450867,1708361501003,-500.0,0.00047123,18]
[314450868,1708361501012,-500.0,0.00047123,18]
[314450869,1708361501023,-500.0,0.00047123,18]
[314450870,1708361501034,-1000.0,0.00047123,31]
[314450871,1708361501046,-500.0,0.00047123,18]
[314450872,1708361501057,-500.0,0.00047123,18]
[314450873,1708361501067,-500.0,0.00047123,18]
[314450874,1708361501078,-500.0,0.00047123,18]
[314450875,1708361501089,-523.18908702,0.00047123,18]
[314450876,1708361501099,-500.0,0.00047123,18]
[314450877,1708361501110,-500.0,0.00047123,18]
[314450878,1708361501121,-531.08,0.00047123,18]
[314450879,1708361501132,-500.0,0.00047123,18]
[314450880,1708361501143,-500.0,0.00047123,18]
[314450881,1708361501153,-500.0,0.00047123,18]
[314450882,1708361501163,-500.0,0.00047123,18]
[314450883,1708361501174,-500.0,0.00047123,18]
[314450884,1708361501184,-496.25081886,0.00047123,18]
[314450885,1708361501194,-500.0,0.00047123,18]
[314450886,1708361501204,-526.21,0.00047123,18]
[314450887,1708361501215,-500.0,0.00047123,18]
[314450888,1708361501225,-500.0,0.00047123,7]
[314450889,1708361501237,-500.0,0.00047123,18]
[314450890,1708361501247,-500.0,0.00047123,18]
[314450891,1708361501257,-500.0,0.00047123,18]
[314450892,1708361501267,-772.92,0.00047123,18]
[314450893,1708361501278,-500.0,0.00047123,18]
[314450894,1708361501287,-1184.72,0.00047123,18]
[314450895,1708361501297,-500.0,0.00047123,18]
[314450896,1708361501307,-2181.93,0.00047123,18]
[314450897,1708361501316,-546.62521088,0.00047123,18]
[314450898,1708361501326,-500.0,0.00047123,18]
[314450899,1708361501347,-500.0,0.00047123,18]
[314450900,1708361501367,-500.0,0.00047123,18]
[314450901,1708361501390,-500.0,0.00047123,18]
[314450902,1708361501411,-623.96774983,0.00047123,18]
[314450903,1708361501434,-512.62378655,0.00047123,18]
[314450904,1708361501456,-1164.86,0.00047123,18]
[314450905,1708361501479,-500.0,0.00047123,2]
[314450906,1708361501502,-500.0,0.00047123,18]
[314450907,1708361501521,-527.14,0.00047123,18]
[314450908,1708361501531,-500.0,0.00047123,18]
[314450909,1708361501541,-1394.39,0.00047123,18]
[314450910,1708361501550,-694.62,0.00047123,18]
[314450911,1708361501560,-500.0,0.00047123,18]
[314450912,1708361501569,-500.0,0.00047123,18]
[314450913,1708361501578,-500.0,0.00047123,18]
[314450914,1708361501588,-500.0,0.00047123,18]
[314450915,1708361501598,-500.0,0.00047123,18]
[314450916,1708361501608,-500.0,0.00047123,18]
[314450917,1708361501619,-500.0,0.00047123,18]
[314450918,1708361501629,-500.0,0.00047123,18]
[314450919,1708361501639,-500.0,0.00047123,18]
[314450920,1708361501649,-500.0,0.00047123,18]
[314450921,1708361501659,-500.0,0.00047123,2]
[314450922,1708361501668,-500.0,0.00047123,18]
[314450923,1708361501678,-500.0,0.00047123,18]
[314450924,1708361501688,-500.0,0.00047123,18]
[314450925,1708361501698,-500.0,0.00047123,18]
[314450926,1708361501708,-582.15526384,0.00047123,18]
[314450927,1708361501718,-721.6,0.00047123,18]
[314450928,1708361501727,-500.0,0.00047123,18]
[314450929,1708361501739,-500.0,0.00047123,18]
[314450930,1708361501750,-500.0,0.00047123,18]
[314450931,1708361501759,-500.0,0.00047123,18]
[314450932,1708361501769,-500.0,0.00047123,18]
[314450933,1708361501779,-500.0,0.00047123,18]
[314450934,1708361501788,-500.0,0.00047123,18]
[314450935,1708361501798,-2768.72,0.00047123,18]
[314450936,1708361501807,-500.0,0.00047123,18]
[314450937,1708361501818,-589.24180163,0.00047123,2]
[314450938,1708361501829,-500.0,0.00047123,18]
[314450939,1708361501840,-500.0,0.00047123,18]
[314450940,1708361501850,-500.0,0.00047123,18]
[314450941,1708361501859,-1855.51,0.00047123,18]
[314450942,1708361501869,-500.0,0.00047123,18]
[314450943,1708361501879,-500.0,0.00047123,18]
[314450944,1708361501888,-500.0,0.00047123,18]
[314450945,1708361501897,-500.0,0.00047123,18]
[314450946,1708361501907,-500.0,0.00047123,18]
[314450947,1708361501916,-500.0,0.00047123,18]
[314450948,1708361501926,-500.0,0.00047123,18]
[314450949,1708361501937,-181.942633,0.00047123,14]
[314450950,1708361501949,-2206.82,0.00047141,30]
[314450951,1708361501960,-2206.82,0.00047141,30]
[314450952,1708361501970,-151.0,0.000472,18]
[314450953,1708361501985,-1000.0,0.000472,20]
[314450954,1708361501995,-5000.0,0.00047224,2]
[314450955,1708361502009,-873.96,0.00047226,2]
[314450956,1708361502020,-500.0,0.0004723,14]
[314450957,1708361502030,-261.87086211,0.00047239,30]
[314450958,1708361502042,-450.0,0.0004726,2]
[314450959,1708361502052,-500.0,0.0004726,2]
[314450960,1708361502063,-500.0,0.0004726,2]
[314450961,1708361502073,-500.0,0.0004726,2]
[314450962,1708361502083,-500.0,0.0004726,2]
[314450963,1708361502093,-500.0,0.0004726,2]
[314450964,1708361502104,-500.0,0.0004726,2]
[314450965,1708361502114,-500.0,0.0004726,2]
[314450966,1708361502125,-500.0,0.0004726,2]
[314450967,1708361502135,-500.0,0.0004726,2]
[314450968,1708361502146,-500.0,0.0004726,2]
[314450969,1708361502156,-500.0,0.0004726,2]
[314450970,1708361502165,-500.0,0.0004726,2]
[314450971,1708361502174,-500.0,0.0004726,2]
[314450972,1708361502184,-500.0,0.0004726,2]
[314450973,1708361502194,-500.0,0.0004726,2]
[314450974,1708361502204,-500.0,0.0004726,2]
[314450975,1708361502214,-500.0,0.0004726,2]
[314450976,1708361502224,-500.0,0.0004726,2]
[314450977,1708361502236,-500.0,0.0004726,2]
[314450978,1708361502246,-500.0,0.0004726,2]
[314450979,1708361502256,-500.0,0.0004726,2]
[314450980,1708361502266,-500.0,0.0004726,2]
[314450981,1708361502276,-500.0,0.0004726,2]
[314450982,1708361502287,-500.0,0.0004726,2]
[314450983,1708361502297,-500.0,0.0004726,2]
[314450984,1708361502307,-500.0,0.0004726,2]
[314450985,1708361502317,-500.0,0.0004726,2]
[314450986,1708361502327,-500.0,0.0004726,2]
[314450987,1708361502337,-500.0,0.0004726,2]
[314450988,1708361502347,-500.0,0.0004726,2]
[314450989,1708361502356,-500.0,0.0004726,2]
[314450990,1708361502365,-500.0,0.0004726,2]
[314450991,1708361502375,-500.0,0.0004726,2]
[314450992,1708361502384,-500.0,0.0004726,2]
[314450993,1708361502394,-500.0,0.0004726,2]
[314450994,1708361502403,-500.0,0.0004726,2]
[314450995,1708361502413,-500.0,0.0004726,2]
[314450996,1708361502422,-500.0,0.0004726,2]
[314450997,1708361502431,-500.0,0.0004726,2]
[314450998,1708361502441,-500.0,0.0004726,2]
[314450999,1708361502450,-500.0,0.0004726,2]
[314451000,1708361502460,-500.0,0.0004726,2]
[314451001,1708361502469,-500.0,0.0004726,2]
[314451002,1708361502478,-500.0,0.0004726,2]
[314451003,1708361502490,-500.0,0.0004726,2]
[314451004,1708361502500,-500.0,0.0004726,2]
[314451005,1708361502509,-500.0,0.0004726,2]
[314451006,1708361502520,-500.0,0.0004726,2]
[314451007,1708361502530,-500.0,0.0004726,2]
[314451008,1708361502540,-500.0,0.0004726,2]
[314451009,1708361502550,-500.0,0.0004726,2]
[314451010,1708361502561,-500.0,0.0004726,2]
[314451011,1708361502571,-500.0,0.0004726,2]
[314451012,1708361502581,-500.0,0.0004726,2]
[314451013,1708361502592,-500.0,0.0004726,2]
[314451014,1708361502604,-500.0,0.0004726,2]
[314451015,1708361502616,-500.0,0.0004726,2]
[314451016,1708361502837,-768.048,0.0004726,60]
[314451017,1708361502848,-500.0,0.000473,2]
[314451018,1708361502860,-500.0,0.000473,2]
[314451019,1708361502870,-2567.0,0.000473,120]
[314451020,1708361502882,-500.63,0.00047333,2]
[314451021,1708361502893,-302.0,0.00047366,4]
[314451022,1708361502903,-200.0,0.00047379,120]
[314451023,1708361502914,-500.0,0.00047379,14]
[314451024,1708361502924,-230.12520523,0.00047381,7]
[314451025,1708361502936,-313.74014338,0.00047381,7]
[314451026,1708361502946,-187.57140371,0.00047397,18]
[314451027,1708361502956,-500.0,0.00047397,18]
[314451028,1708361502971,-267.09675232,0.00047397,18]
[314451029,1708361502982,-500.0,0.00047397,18]
[314451030,1708361502997,-165.26606853,0.00047397,18]
[314451031,1708361503008,-500.0,0.00047397,18]
[314451032,1708361503019,-534.84,0.00047397,2]
[314451033,1708361503029,-500.0,0.00047397,18]
[314451034,1708361503040,-640.6262871,0.00047397,18]
[314451035,1708361503050,-500.0,0.00047397,18]
[314451036,1708361503060,-500.0,0.00047397,18]
[314451037,1708361503071,-500.0,0.00047397,18]
[314451038,1708361503081,-500.0,0.00047397,18]
[314451039,1708361503091,-1107.1,0.00047397,18]
[314451040,1708361503101,-500.0,0.00047397,18]
[314451041,1708361503111,-516.39406786,0.00047397,18]
[314451042,1708361503122,-500.0,0.00047397,18]
[314451043,1708361503133,-330.20913866,0.00047397,18]
[314451044,1708361503142,-238.21808112,0.00047397,18]
[314451045,1708361503153,-500.0,0.00047397,18]
[314451046,1708361503163,-500.0,0.00047397,18]
[314451047,1708361503173,-500.0,0.00047397,18]
[314451048,1708361503183,-516.47671873,0.00047397,18]
[314451049,1708361503194,-500.0,0.00047397,18]
[314451050,1708361503205,-597.07510955,0.00047397,18]
[314451051,1708361503216,-500.0,0.00047397,18]
[314451052,1708361503227,-566.11740292,0.00047397,18]
[314451053,1708361503243,-500.0,0.00047397,18]
[314451054,1708361503254,-532.0760727,0.00047397,18]
[314451055,1708361503265,-500.0,0.00047397,18]
[314451056,1708361503276,-317.89808845,0.00047397,18]
[314451057,1708361503287,-198.42791704,0.00047397,18]
[314451058,1708361503297,-500.0,0.00047397,18]
[314451059,1708361503308,-500.0,0.00047397,18]
[314451060,1708361503318,-523.17370669,0.00047397,18]
[314451061,1708361503328,-500.0,0.00047397,18]
[314451062,1708361503338,-500.0,0.00047397,18]
[314451063,1708361503349,-500.0,0.00047397,18]
[314451064,1708361503359,-500.0,0.00047397,18]
[314451065,1708361503370,-500.0,0.00047397,18]
[314451066,1708361503380,-500.0,0.00047397,18]
[314451067,1708361503390,-408.91829314,0.00047397,18]
[314451068,1708361503400,-558.201154,0.00047397,18]
[314451069,1708361503411,-500.0,0.00047397,18]
[314451070,1708361503421,-321.70744317,0.00047397,18]
[314451071,1708361503432,-500.0,0.00047397,18]
[314451072,1708361503442,-601.64325764,0.00047397,18]
[314451073,1708361503453,-317.44561806,0.00047397,18]
[314451074,1708361503464,-251.84995536,0.00047397,18]
[314451075,1708361503475,-311.68908487,0.00047397,18]
[314451076,1708361503489,-620.37312111,0.00047397,18]
[314451077,1708361503499,-500.0,0.00047397,18]
[314451078,1708361503509,-500.0,0.00047397,2]
[314451079,1708361503519,-500.0,0.00047397,18]
[314451080,1708361503529,-500.0,0.00047397,18]
[314451081,1708361503539,-637.64,0.00047397,18]
[314451082,1708361503549,-2448.33,0.00047397,2]
[314451083,1708361503560,-209.84153697,0.00047397,18]
[314451084,1708361503570,-566.05656196,0.00047397,18]
[314451085,1708361503581,-500.0,0.00047397,18]
[314451086,1708361503591,-500.0,0.00047397,2]
[314451087,1708361503601,-529.91433386,0.00047397,18]
[314451088,1708361503612,-500.0,0.00047397,18]
[314451089,1708361503622,-500.0,0.00047397,18]
[314451090,1708361503632,-500.0,0.00047397,18]
[314451091,1708361503642,-500.0,0.00047397,18]
[314451092,1708361503652,-625.64714749,0.00047397,18]
[314451093,1708361503663,-500.0,0.00047397,18]
[314451094,1708361503673,-548.60225023,0.00047397,18]
[314451095,1708361503683,-500.0,0.00047397,18]
[314451096,1708361503694,-500.0,0.00047397,18]
[314451097,1708361503704,-563.97371284,0.00047397,18]
[314451098,1708361503715,-1000.0,0.00047397,7]
[314451099,1708361503725,-500.0,0.00047397,18]
[314451100,1708361503739,-500.0,0.00047397,18]
[314451101,1708361503749,-500.0,0.00047397,18]
[314451102,1708361503760,-500.0,0.00047397,18]
[314451103,1708361503770,-539.89186427,0.00047397,18]
[314451104,1708361503780,-500.0,0.00047397,18]
[314451105,1708361503790,-612.40496162,0.00047397,18]
[314451106,1708361503800,-500.0,0.00047397,18]
[314451107,1708361503810,-500.0,0.00047397,18]
[314451108,1708361503820,-500.0,0.00047397,18]
[314451109,1708361503829,-500.0,0.00047397,18]
[314451110,1708361503841,-500.0,0.00047397,18]
[314451111,1708361503853,-500.0,0.00047397,18]
[314451112,1708361503863,-500.0,0.00047397,18]
[314451113,1708361503873,-522.48438277,0.00047397,18]
[314451114,1708361503884,-500.0,0.00047397,18]
[314451115,1708361503894,-500.0,0.00047397,18]
[314451116,1708361504057,-500.0,0.00047397,18]
[314451117,1708361504067,-500.0,0.00047397,18]
[314451118,1708361504077,-500.0,0.00047397,18]
[314451119,1708361504086,-500.0,0.00047397,18]
[314451120,1708361504096,-498.90020082,0.00047397,18]
[314451121,1708361504106,-519.57993737,0.00047397,18]
[314451122,1708361504117,-500.0,0.00047397,18]
[314451123,1708361504127,-500.0,0.00047397,18]
[314451124,1708361504138,-516.31,0.00047397,18]
[314451125,1708361504148,-500.0,0.00047397,18]
[314451126,1708361504158,-617.18998572,0.00047397,18]
[314451127,1708361504168,-500.0,0.00047397,18]
[314451128,1708361504178,-500.0,0.00047397,18]
[314451129,1708361504189,-500.0,0.00047397,18]
[314451130,1708361504200,-535.89904235,0.00047397,18]
[314451131,1708361504210,-1000.0,0.00047397,7]
[314451132,1708361504221,-500.0,0.00047397,18]
[314451133,1708361504232,-500.0,0.00047397,18]
[314451134,1708361504248,-500.0,0.00047397,18]
[314451135,1708361504260,-550.43628208,0.00047397,18]
[314451136,1708361504271,-222.31432214,0.00047397,18]
[314451137,1708361504282,-500.0,0.00047397,18]
[314451138,1708361504293,-538.15,0.00047397,18]
[314451139,1708361504303,-497.59242191,0.00047397,18]
[314451140,1708361504314,-500.0,0.00047397,18]
[314451141,1708361504325,-156.20414059,0.00047397,18]
[314451142,1708361504335,-1000.0,0.00047397,7]
[314451143,1708361504349,-154.55731615,0.00047397,18]
[314451144,1708361504360,-500.0,0.00047397,18]
[314451145,1708361504370,-500.0,0.00047397,18]
[314451146,1708361504380,-500.0,0.00047397,18]
[314451147,1708361504390,-500.0,0.00047397,18]
[314451148,1708361504400,-500.0,0.00047397,18]
[314451149,1708361504410,-500.0,0.00047397,18]
[314451150,1708361504419,-1000.0,0.00047397,10]
[314451151,1708361504429,-598.8929434,0.00047397,18]
[314451152,1708361504439,-532.91373995,0.00047397,18]
[314451153,1708361504449,-500.0,0.00047397,18]
[314451154,1708361504459,-635.92777701,0.00047397,18]
[314451155,1708361504468,-500.0,0.00047397,18]
[314451156,1708361504479,-500.0,0.00047397,18]
[314451157,1708361504493,-669.08,0.00047397,18]
[314451158,1708361504503,-413.41102244,0.00047397,18]
[314451159,1708361504513,-527.17,0.00047397,18]
[314451160,1708361504523,-500.0,0.00047397,18]
[314451161,1708361504533,-218.83468822,0.00047397,18]
[314451162,1708361504542,-500.0,0.00047397,18]
[314451163,1708361504552,-275.14,0.00047397,18]
[314451164,1708361504562,-539.29677517,0.00047397,18]
[314451165,1708361504571,-500.0,0.00047397,18]
[314451166,1708361504580,-500.0,0.00047397,18]
[314451167,1708361504590,-500.0,0.00047397,18]
[314451168,1708361504600,-863.62,0.00047397,2]
[314451169,1708361504610,-500.0,0.00047397,18]
[314451170,1708361504619,-500.0,0.00047397,18]
[314451171,1708361504629,-500.0,0.00047397,18]
[314451172,1708361504639,-500.0,0.00047397,18]
[314451173,1708361504648,-455.73,0.00047397,18]
[314451174,1708361504658,-544.37297718,0.00047397,18]
[314451175,1708361504667,-500.0,0.00047397,18]
[314451176,1708361504677,-593.23032235,0.00047397,18]
[314451177,1708361504686,-612.02162112,0.00047397,18]
[314451178,1708361504696,-500.0,0.00047397,2]
[314451179,1708361504706,-500.0,0.00047397,18]
[314451180,1708361504716,-543.04162005,0.00047397,18]
[314451181,1708361504726,-369.41,0.00047397,18]
[314451182,1708361504739,-500.0,0.00047397,18]
[314451183,1708361504748,-492.55426212,0.00047397,18]
[314451184,1708361504758,-500.0,0.00047397,18]
[314451185,1708361504768,-500.0,0.00047397,18]
[314451186,1708361504778,-500.0,0.00047397,18]
[314451187,1708361504788,-500.0,0.00047397,18]
[314451188,1708361504798,-500.0,0.00047397,18]
[314451189,1708361504807,-500.0,0.00047397,18]
[314451190,1708361504817,-500.0,0.00047397,18]
[314451191,1708361504827,-500.0,0.00047397,18]
[314451192,1708361504837,-500.0,0.00047397,18]
[314451193,1708361504848,-664.1,0.00047397,18]
[314451194,1708361504858,-500.0,0.00047397,18]
[314451195,1708361504869,-500.0,0.00047397,18]
[314451196,1708361504879,-500.0,0.00047397,18]
[314451197,1708361504890,-500.0,0.00047397,18]
[314451198,1708361504900,-515.20067781,0.00047397,18]
[314451199,1708361504910,-500.0,0.00047397,18]
[314451200,1708361504921,-1317.88,0.00047397,18]
[314451201,1708361504931,-500.0,0.00047397,18]
[314451202,1708361504943,-500.0,0.00047397,18]
[314451203,1708361504953,-500.0,0.00047397,18]
[314451204,1708361504963,-500.0,0.00047397,18]
[314451205,1708361504976,-500.0,0.00047397,18]
[314451206,1708361504988,-500.0,0.00047397,18]
[314451207,1708361504998,-500.0,0.00047397,18]
[314451208,1708361505009,-500.0,0.00047397,18]
[314451209,1708361505019,-516.66157572,0.00047397,18]
[314451210,1708361505030,-500.0,0.00047397,18]
[314451211,1708361505041,-500.0,0.00047397,18]
[314451212,1708361505052,-543.08874231,0.00047397,18]
[314451213,1708361505062,-500.0,0.00047397,18]
[314451214,1708361505073,-500.0,0.00047397,18]
[314451215,1708361505084,-500.0,0.00047397,18]
[314451216,1708361505095,-289.69664135,0.00047397,18]
[314451217,1708361505105,-1430.78,0.00047397,18]
[314451218,1708361505117,-602.67024686,0.00047397,18]
[314451219,1708361505127,-500.0,0.00047397,18]
[314451220,1708361505138,-500.0,0.00047397,18]
[314451221,1708361505148,-500.0,0.00047397,18]
[314451222,1708361505158,-500.0,0.00047397,18]
[314451223,1708361505169,-500.0,0.00047397,18]
[314451224,1708361505180,-701.42,0.00047397,18]
[314451225,1708361505191,-500.0,0.00047397,2]
[314451226,1708361505202,-500.0,0.00047397,18]
[314451227,1708361505213,-548.18642654,0.00047397,18]
[314451228,1708361505223,-761.63,0.00047397,18]
[314451229,1708361505234,-500.0,0.00047397,18]
[314451230,1708361505246,-522.04631991,0.00047397,18]
[314451231,1708361505256,-160.90962644,0.00047397,18]
[314451232,1708361505267,-513.48367864,0.00047397,18]
[314451233,1708361505277,-500.0,0.00047397,18]
[314451234,1708361505287,-500.0,0.00047397,18]
[314451235,1708361505297,-514.71206388,0.00047397,18]
[314451236,1708361505307,-500.0,0.00047397,18]
[314451237,1708361505317,-552.88,0.00047397,18]
[314451238,1708361505326,-721.95,0.00047397,18]
[314451239,1708361505335,-500.0,0.00047397,18]
[314451240,1708361505345,-500.0,0.00047397,18]
[314451241,1708361505353,-1276.36,0.00047397,18]
[314451242,1708361505363,-500.0,0.00047397,18]
[314451243,1708361505373,-693.07,0.00047397,18]
[314451244,1708361505383,-500.0,0.00047397,18]
[314451245,1708361505393,-1511.14,0.00047397,18]
[314451246,1708361505402,-500.0,0.00047397,18]
[314451247,1708361505412,-500.0,0.00047397,18]
[314451248,1708361505421,-1587.45,0.00047397,18]
[314451249,1708361505431,-512.76763118,0.00047397,18]
[314451250,1708361505441,-500.0,0.00047397,18]
[314451251,1708361505452,-500.0,0.00047397,14]
[314451252,1708361505461,-500.0,0.00047397,18]
[314451253,1708361505471,-9227.81,0.00047397,18]
[314451254,1708361505481,-500.0,0.00047397,18]
[314451255,1708361505494,-1867.41,0.00047397,18]
[314451256,1708361505503,-532.70566348,0.00047397,18]
[314451257,1708361505513,-1111.54,0.00047397,18]
[314451258,1708361505523,-500.0,0.00047397,18]
[314451259,1708361505533,-500.0,0.00047397,18]
[314451260,1708361505543,-947.75,0.00047397,18]
[314451261,1708361505553,-500.0,0.00047397,18]
[314451262,1708361505563,-500.0,0.00047397,18]
[314451263,1708361505573,-537.97076712,0.00047397,18]
[314451264,1708361505583,-500.0,0.00047397,18]
[314451265,1708361505592,-500.0,0.00047397,18]
[314451266,1708361505602,-523.52451241,0.00047397,18]
[314451267,1708361505611,-500.0,0.00047397,18]
[314451268,1708361505622,-500.0,0.00047397,18]
[314451269,1708361505631,-530.70456319,0.00047397,18]
[314451270,1708361505640,-493.98199209,0.00047397,18]
[314451271,1708361505650,-500.0,0.00047397,18]
[314451272,1708361505660,-500.0,0.00047397,18]
[314451273,1708361505669,-500.0,0.00047397,18]
[314451274,1708361505679,-500.0,0.00047397,18]
[314451275,1708361505689,-1223.17,0.00047397,18]
[314451276,1708361505698,-500.0,0.00047397,18]
[314451277,1708361505707,-500.0,0.00047397,18]
[314451278,1708361505716,-500.0,0.00047397,18]
[314451279,1708361505726,-560.37640165,0.00047397,18]
[314451280,1708361505735,-697.9,0.00047397,18]
[314451281,1708361505748,-646.16,0.00047397,18]
[314451282,1708361505757,-500.0,0.00047397,18]
[314451283,1708361505766,-500.0,0.00047397,18]
[314451284,1708361505776,-500.0,0.00047397,18]
[314451285,1708361505785,-254.77591545,0.00047397,18]
[314451286,1708361505795,-535.11562663,0.00047397,18]
[314451287,1708361505805,-500.0,0.00047397,18]
[314451288,1708361505814,-500.0,0.00047397,18]
[314451289,1708361505823,-242.05429486,0.00047397,18]
[314451290,1708361505833,-500.0,0.00047397,18]
[314451291,1708361505843,-500.0,0.00047397,18]
[314451292,1708361505852,-500.0,0.00047397,18]
[314451293,1708361505861,-500.0,0.00047397,18]
[314451294,1708361505871,-500.0,0.00047397,18]
[314451295,1708361505881,-500.0,0.00047397,20]
[314451296,1708361505890,-500.0,0.00047397,18]
[314451297,1708361505903,-500.0,0.00047397,18]
[314451298,1708361505913,-500.0,0.00047397,18]
[314451299,1708361505922,-500.0,0.00047397,18]
[314451300,1708361505932,-500.0,0.00047397,18]
[314451301,1708361505946,-557.8550452,0.00047397,18]
[314451302,1708361505955,-500.0,0.00047397,18]
[314451303,1708361505964,-500.0,0.00047397,18]
[314451304,1708361505975,-500.0,0.00047397,18]
[314451305,1708361505990,-546.07,0.00047397,18]
[314451306,1708361506000,-160.28729067,0.00047397,18]
[314451307,1708361506009,-500.0,0.00047397,18]
[314451308,1708361506019,-500.0,0.00047397,18]
[314451309,1708361506029,-500.0,0.00047397,18]
[314451310,1708361506039,-500.0,0.00047397,18]
[314451311,1708361506050,-500.0,0.00047397,18]
[314451312,1708361506060,-500.0,0.00047397,18]
[314451313,1708361506070,-524.8279315,0.00047397,18]
[314451314,1708361506081,-580.66,0.00047397,18]
[314451315,1708361506091,-500.0,0.00047397,18]
[314451316,1708361506101,-500.0,0.00047397,18]
[314451317,1708361506112,-500.0,0.00047397,18]
[314451318,1708361506122,-500.0,0.00047397,18]
[314451319,1708361506133,-575.33,0.00047397,18]
[314451320,1708361506143,-555.32001803,0.00047397,18]
[314451321,1708361506153,-877.69,0.00047397,18]
[314451322,1708361506163,-500.0,0.00047397,18]
[314451323,1708361506173,-500.0,0.00047397,18]
[314451324,1708361506183,-500.0,0.00047397,18]
[314451325,1708361506193,-2245.54,0.00047397,18]
[314451326,1708361506203,-500.0,0.00047397,18]
[314451327,1708361506214,-534.82641699,0.00047397,18]
[314451328,1708361506224,-490.10313477,0.00047397,18]
[314451329,1708361506235,-500.0,0.00047397,18]
[314451330,1708361506250,-1052.4,0.00047397,18]
[314451331,1708361506260,-527.55812981,0.00047397,18]
[314451332,1708361506270,-500.0,0.00047397,18]
[314451333,1708361506280,-500.0,0.00047397,18]
[314451334,1708361506290,-500.0,0.00047397,18]
[314451335,1708361506300,-500.0,0.00047397,18]
[314451336,1708361506309,-522.94196958,0.00047397,18]
[314451337,1708361506319,-568.28,0.00047397,18]
[314451338,1708361506330,-500.0,0.00047397,18]
[314451339,1708361506340,-500.0,0.00047397,18]
[314451340,1708361506349,-643.75,0.00047397,18]
[314451341,1708361506358,-536.98630207,0.00047397,18]
[314451342,1708361506368,-500.32,0.00047397,18]
[314451343,1708361506378,-500.0,0.00047397,18]
[314451344,1708361506388,-500.0,0.00047397,18]
[314451345,1708361506398,-500.0,0.00047397,18]
[314451346,1708361506407,-526.39739873,0.00047397,18]
[314451347,1708361506417,-500.0,0.00047397,18]
[314451348,1708361506426,-500.0,0.00047397,18]
[314451349,1708361506435,-574.24,0.00047397,18]
[314451350,1708361506445,-500.0,0.00047397,18]
[314451351,1708361506454,-500.0,0.00047397,18]
[314451352,1708361506464,-500.0,0.00047397,18]
[314451353,1708361506475,-577.47440427,0.00047397,18]
[314451354,1708361506485,-500.0,0.00047397,18]
[314451355,1708361506498,-456.20098285,0.00047397,18]